bitfinex-derivatives/quotes_BTCF0:USTF0_20240902
["timestamp","ask_amount","ask_price","bid_price","bid_amount"]
[1725276256122,0.57836,58572.0,58571.0,0.086762]
[1725276256811,0.57836,58572.0,58571.0,0.447562]
[1725276257008,0.57836,58572.0,58571.0,0.446562]
[1725276257207,0.57936,58572.0,58571.0,0.446562]
[1725276257407,0.69300033,58572.0,58571.0,0.446562]
[1725276257608,0.68900033,58572.0,58571.0,0.446562]
[1725276257813,0.69200033,58572.0,58571.0,0.446562]
[1725276259307,0.20200033,58572.0,58571.0,0.446562]
[1725276259518,0.14176523,58572.0,58571.0,0.446562]
[1725276259912,0.23176523,58572.0,58571.0,0.446562]
[1725276260116,0.29300033,58572.0,58571.0,0.446562]
[1725276261009,0.29300003,58572.0,58571.0,0.446562]
[1725276262224,0.22876493,58572.0,58571.0,0.450562]
[1725276262425,0.71876493,58572.0,58571.0,0.450562]
[1725276262718,0.78000003,58572.0,58571.0,0.450562]
[1725276263119,0.78000003,58572.0,58571.0,0.454562]
[1725276263120,0.77900003,58572.0,58571.0,0.454562]
[1725276263922,0.77900003,58572.0,58571.0,0.455562]
[1725276264123,0.77900003,58572.0,58571.0,0.451562]
[1725276264424,0.77900003,58572.0,58571.0,0.454562]
[1725276264425,0.66536,58572.0,58571.0,0.454562]
[1725276264626,0.57536,58572.0,58571.0,0.451562]
[1725276264812,0.66536,58572.0,58571.0,0.451562]
[1725276265015,0.08536,58572.0,58571.0,0.448562]
[1725276270326,0.085357,58575.0,58574.0,0.085354]
[1725276270626,0.085357,58575.0,58574.0,0.085754]
[1725276272224,0.00385996,58578.0,58577.0,0.170706]
[1725276272225,0.0002562,58578.0,58577.0,0.170706]
[1725276272421,0.0002562,58578.0,58577.0,0.621906]
[1725276272626,0.0002562,58578.0,58577.0,0.536553]
[1725276273224,0.0002562,58578.0,58577.0,1.134066]
[1725276273434,0.0002562,58578.0,58577.0,1.136066]
[1725276274727,0.0022562,58578.0,58577.0,0.623906]
[1725276275528,0.0002562,58578.0,58577.0,0.623906]
[1725276276035,0.05265049,58578.0,58577.0,0.623906]
[1725276276329,0.18766389,58578.0,58577.0,0.623906]
[1725276276731,0.05265049,58578.0,58577.0,0.623906]
[1725276278035,0.0002562,58578.0,58577.0,0.709259]
[1725276278236,0.0002562,58578.0,58577.0,1.821419]
[1725276278537,0.0002562,58578.0,58577.0,1.221419]
[1725276279622,0.446137,58588.0,58577.0,1.221419]
[1725276279623,0.3608,58617.0,58610.0,0.085305]
[1725276279827,0.09,58623.0,58616.0,0.09]
[1725276280031,0.085288,58622.0,58616.0,0.09]
[1725276280237,0.09,58623.0,58616.0,0.09]
[1725276280440,0.51456478,58624.0,58616.0,0.09]
[1725276280627,0.09,58621.0,58616.0,0.085296]
[1725276281240,0.09,58621.0,58618.0,0.085293]
[1725276281930,0.008,58622.0,58618.0,0.085293]
[1725276282538,0.008,58622.0,58619.0,0.085291]
[1725276282733,0.014,58621.0,58619.0,0.085291]
[1725276283035,0.02,58621.0,58619.0,0.085291]
[1725276283534,0.174,58622.0,58619.0,0.085291]
[1725276283736,0.178,58622.0,58619.0,0.085291]
[1725276284044,0.178,58622.0,58620.0,0.08529]
[1725276284827,0.178,58622.0,58621.0,0.085289]
[1725276285036,0.174,58622.0,58621.0,0.085289]
[1725276285237,0.16,58622.0,58621.0,0.085289]
[1725276286146,0.173,58622.0,58621.0,0.086289]
[1725276286949,0.179,58622.0,58621.0,0.086289]
[1725276287241,0.179,58622.0,58621.0,0.086689]
[1725276287440,0.173,58622.0,58621.0,0.086689]
[1725276287638,0.31665295,58622.0,58621.0,0.087689]
[1725276288237,0.80665295,58622.0,58621.0,0.087689]
[1725276288631,0.86784218,58622.0,58621.0,0.087689]
[1725276289242,0.62255518,58622.0,58621.0,0.087689]
[1725276289552,0.07136595,58622.0,58621.0,0.448489]
[1725276290348,0.07136595,58622.0,58621.0,0.533778]
[1725276290546,0.07136595,58622.0,58621.0,0.448489]
[1725276290938,0.019,58622.0,58621.0,0.448489]
[1725276291139,0.019,58622.0,58621.0,1.045538]
[1725276291336,0.019,58622.0,58621.0,0.533778]
[1725276291647,0.00389693,58626.0,58625.0,0.085283]
[1725276291945,0.30153931,58626.0,58625.0,0.0004]
[1725276292142,0.30153931,58626.0,58625.0,0.085683]
[1725276292643,0.14153931,58626.0,58625.0,0.085683]
[1725276292841,0.14153931,58626.0,58625.0,0.0004]
[1725276293038,0.15453931,58626.0,58625.0,0.0014]
[1725276293551,0.15853931,58626.0,58625.0,0.0024]
[1725276294666,0.10617893,58626.0,58625.0,0.0024]
[1725276294961,0.02089693,58626.0,58625.0,0.0024]
[1725276295157,0.01725597,58626.0,58625.0,0.448483]
[1725276296965,0.01325597,58626.0,58625.0,0.447483]
[1725276297167,0.10253797,58626.0,58625.0,0.448483]
[1725276297366,0.01725597,58626.0,58625.0,0.448483]
[1725276297870,0.01525597,58626.0,58625.0,0.448483]
[1725276301969,0.10053797,58626.0,58625.0,0.448483]
[1725276302855,0.10053797,58626.0,58625.0,0.3632]
[1725276303060,0.10053797,58626.0,58625.0,0.448483]
[1725276303458,0.01525597,58626.0,58625.0,0.448483]
[1725276306263,0.01525597,58626.0,58625.0,0.960203]
[1725276306867,0.01525597,58626.0,58625.0,1.141386]
[1725276307563,0.01525597,58626.0,58625.0,1.741386]
[1725276307959,0.01525597,58626.0,58625.0,0.533766]
[1725276308166,0.01525597,58626.0,58625.0,0.45198228]
[1725276309766,0.01525597,58626.0,58625.0,0.448483]
[1725276314576,0.10053797,58626.0,58625.0,0.448483]
[1725276315264,0.01525597,58626.0,58625.0,0.448483]
[1725276317486,0.0458,58629.0,58628.0,0.085279]
[1725276317687,0.085273,58632.0,58628.0,0.1604]
[1725276317875,0.085273,58632.0,58631.0,0.51418304]
[1725276318077,0.085273,58632.0,58631.0,0.51378304]
[1725276318384,0.085273,58632.0,58631.0,0.51381638]
[1725276319177,0.085273,58632.0,58631.0,0.51381738]
[1725276319375,0.180272,58633.0,58632.0,0.085273]
[1725276319577,0.180272,58633.0,58632.0,0.085673]
[1725276321186,0.180272,58633.0,58632.0,0.086673]
[1725276321488,0.085249,58649.0,58639.0,0.085262]
[1725276321788,0.3608,58656.0,58649.0,0.085248]
[1725276322081,0.15150289,58661.0,58660.0,0.085232]
[1725276322082,0.143,58661.0,58660.0,0.085232]
[1725276322276,0.085217,58671.0,58660.0,0.1604]
[1725276322477,0.3608,58682.0,58670.0,0.3612]
[1725276322679,0.446001,58682.0,58681.0,0.0004]
[1725276322878,0.3608,58682.0,58676.0,0.00025574]
[1725276323190,0.3608,58682.0,58678.0,0.16]
[1725276323379,0.3608,58682.0,58676.0,0.00025574]
[1725276323380,0.085206,58678.0,58676.0,0.00025574]
[1725276324187,0.1435,58681.0,58676.0,0.00025574]
[1725276324379,0.228702,58681.0,58680.0,0.0004]
[1725276324581,1.4340027,58681.0,58680.0,0.00036]
[1725276324885,1.49513776,58681.0,58680.0,0.00036]
[1725276325883,0.38751772,58681.0,58680.0,0.00036]
[1725276326090,0.32638266,58681.0,58680.0,0.00036]
[1725276326686,1.43762266,58681.0,58680.0,0.00036]
[1725276326887,1.49975772,58681.0,58680.0,0.00036]
[1725276327289,1.65975772,58681.0,58680.0,0.00036]
[1725276327485,1.65875772,58681.0,58680.0,0.00036]
[1725276327682,1.66075772,58681.0,58680.0,0.00236]
[1725276327884,1.14951772,58681.0,58680.0,0.00236]
[1725276328189,1.14951721,58681.0,58680.0,0.00236]
[1725276328384,0.24601721,58681.0,58680.0,0.00236]
[1725276328689,0.24601721,58681.0,58680.0,0.36316]
[1725276328690,0.18488215,58681.0,58680.0,0.36316]
[1725276328888,1.29612215,58681.0,58680.0,0.00236]
[1725276329082,1.35725721,58681.0,58680.0,0.00236]
[1725276329689,0.75725721,58681.0,58680.0,0.00236]
[1725276329901,0.24601721,58681.0,58680.0,0.00236]
[1725276330083,0.18488215,58681.0,58680.0,0.00236]
[1725276332299,0.09606019,58681.0,58680.0,0.247563]
[1725276332600,0.17095113,58681.0,58680.0,0.00236]
[1725276332899,0.087202,58681.0,58680.0,0.00236]
[1725276333295,0.002,58681.0,58680.0,0.087563]
[1725276333795,0.087202,58681.0,58680.0,0.00236]
[1725276334001,0.002,58681.0,58680.0,0.087563]
[1725276334915,0.002,58681.0,58680.0,0.00236]
[1725276335085,0.087202,58681.0,58680.0,0.00236]
[1725276335286,0.448002,58681.0,58680.0,0.00236]
[1725276335495,0.959242,58681.0,58680.0,0.00236]
[1725276335685,0.938002,58681.0,58680.0,0.00236]
[1725276335889,2.049242,58681.0,58680.0,0.00236]
[1725276336090,0.938002,58681.0,58680.0,0.00236]
[1725276336490,2.049242,58681.0,58680.0,0.00236]
[1725276336692,1.449242,58681.0,58680.0,0.00236]
[1725276336897,2.049242,58681.0,58680.0,0.00236]
[1725276337993,2.209242,58681.0,58680.0,0.00236]
[1725276338397,0.085208,58677.0,58676.0,0.00025574]
[1725276338692,0.085208,58677.0,58676.0,0.08546474]
[1725276338899,0.0004,58677.0,58676.0,0.08546474]
[1725276339396,0.085608,58677.0,58676.0,0.08546474]
[1725276339693,0.12834454,58677.0,58676.0,0.08646474]
[1725276340494,0.12834454,58677.0,58676.0,0.08746474]
[1725276340495,0.12934454,58677.0,58676.0,0.08746474]
[1725276341291,0.18165917,58677.0,58676.0,0.08746474]
[1725276342698,0.09645117,58677.0,58676.0,0.08746474]
[1725276342898,0.04413654,58677.0,58676.0,0.08746474]
[1725276345893,0.12934454,58677.0,58676.0,0.08746474]
[1725276346100,0.04413654,58677.0,58676.0,0.08746474]
[1725276346808,0.1293445,58677.0,58676.0,0.00225574]
[1725276347298,0.18165995,58677.0,58676.0,0.00225574]
[1725276347908,0.087608,58677.0,58676.0,0.00225574]
[1725276348103,0.684096,58677.0,58676.0,0.00225574]
[1725276348298,1.284096,58677.0,58676.0,0.00225574]
[1725276348498,1.284096,58677.0,58676.0,0.00025574]
[1725276348697,1.285096,58677.0,58676.0,0.00025574]
[1725276349110,1.284096,58677.0,58676.0,0.00025574]
[1725276349308,1.285096,58677.0,58676.0,0.00025574]
[1725276349506,0.685096,58677.0,58676.0,0.00025574]
[1725276349806,0.685096,58677.0,58676.0,0.00125574]
[1725276350000,0.683096,58677.0,58676.0,0.00125574]
[1725276350303,0.683096,58677.0,58658.0,0.085234]
[1725276350304,0.085228,58663.0,58662.0,0.3608]
[1725276350504,0.085628,58663.0,58662.0,0.3608]
[1725276350716,0.170856,58663.0,58662.0,0.3608]
[1725276351005,0.575628,58663.0,58662.0,0.3608]
[1725276351904,0.670628,58663.0,58662.0,0.3608]
[1725276352299,0.672628,58663.0,58662.0,0.3608]
[1725276352502,0.4944,58663.0,58662.0,0.3608]
[1725276352708,0.0044,58663.0,58662.0,0.446029]
[1725276353404,0.0044,58663.0,58662.0,0.447029]
[1725276353608,0.0044,58663.0,58662.0,0.542129]
[1725276354798,0.04614254,58663.0,58662.0,0.542129]
[1725276354999,0.04414254,58663.0,58662.0,0.542129]
[1725276355305,0.20549634,58663.0,58662.0,1.5693]
[1725276355505,0.20549634,58663.0,58662.0,1.73794302]
[1725276355506,0.24723822,58663.0,58662.0,1.73794302]
[1725276355710,0.24723822,58663.0,58662.0,1.99263002]
[1725276355711,0.05231638,58663.0,58662.0,1.99263002]
[1725276355906,0.05431638,58663.0,58662.0,1.984987]
[1725276356211,0.0543143,58663.0,58662.0,1.984987]
[1725276356805,0.002,58663.0,58662.0,1.984987]
[1725276357107,0.04373564,58663.0,58662.0,1.984987]
[1725276357312,0.000255,58668.0,58667.0,0.085222]
[1725276357504,0.000255,58668.0,58667.0,0.606422]
[1725276357701,0.0419906,58668.0,58667.0,1.717782]
[1725276357905,0.0419906,58668.0,58667.0,1.567222]
[1725276358103,0.0419906,58668.0,58667.0,1.652444]
[1725276358307,0.0419906,58668.0,58667.0,1.653444]
[1725276358508,0.0429906,58668.0,58667.0,1.654444]
[1725276358711,0.0429906,58668.0,58667.0,2.165804]
[1725276358903,0.0429906,58668.0,58667.0,1.565804]
[1725276359309,0.0429906,58668.0,58667.0,2.165804]
[1725276359510,0.0429906,58668.0,58667.0,2.164804]
[1725276359709,0.0419906,58668.0,58667.0,2.163804]
[1725276362713,0.000255,58668.0,58667.0,1.052444]
[1725276363016,0.000255,58668.0,58667.0,0.967222]
[1725276363607,0.000255,58668.0,58667.0,1.052444]
[1725276363913,0.000255,58668.0,58667.0,2.163804]
[1725276364314,0.000255,58668.0,58667.0,2.2145945]
[1725276364517,0.000255,58668.0,58667.0,1.6145945]
[1725276364822,0.000255,58668.0,58667.0,2.249026]
[1725276365212,0.000255,58668.0,58667.0,2.29974789]
[1725276365416,0.000255,58668.0,58667.0,2.249026]
[1725276365916,0.000255,58668.0,58667.0,1.052444]
[1725276366123,0.000255,58668.0,58667.0,1.563804]
[1725276366821,0.0004,58681.0,58680.0,0.085203]
[1725276367024,0.0004,58681.0,58680.0,0.967203]
[1725276367416,0.0004,58681.0,58680.0,0.807203]
[1725276367916,0.085602,58681.0,58680.0,0.807203]
[1725276368316,0.0004,58681.0,58680.0,0.807203]
[1725276368518,0.0004,58681.0,58680.0,0.808203]
[1725276369025,0.0004,58681.0,58680.0,0.968203]
[1725276369524,0.0004,58681.0,58680.0,0.809203]
[1725276371323,0.0004,58681.0,58680.0,0.969203]
[1725276371524,0.0004,58681.0,58680.0,0.724]
[1725276371730,0.085602,58681.0,58680.0,0.724]
[1725276373322,0.170804,58681.0,58680.0,0.724]
[1725276373631,0.255627,58676.0,58675.0,0.00025574]
[1725276373822,0.085209,58676.0,58675.0,0.00025574]
[1725276374223,1.281698,58676.0,58675.0,0.00025574]
[1725276374427,1.196489,58676.0,58675.0,0.00025574]
[1725276374729,1.281698,58676.0,58675.0,0.00025574]
[1725276375226,1.282698,58676.0,58675.0,0.00025574]
[1725276375428,0.255636,58674.0,58673.0,0.3608]
[1725276375621,0.170438,58669.0,58668.0,0.3608]
[1725276375823,0.085229,58662.0,58661.0,0.3608]
[1725276376020,0.084229,58662.0,58661.0,0.3608]
[1725276376317,0.083229,58662.0,58661.0,0.3608]
[1725276376521,0.083229,58662.0,58661.0,0.606031]
[1725276377719,0.083229,58662.0,58661.0,0.5208]
[1725276378034,0.083229,58662.0,58661.0,0.5248]
[1725276378333,0.13555487,58662.0,58661.0,0.3648]
[1725276378530,0.083229,58662.0,58661.0,0.3648]
[1725276378925,0.168458,58662.0,58661.0,0.3648]
[1725276379121,0.22078672,58662.0,58661.0,0.3678]
[1725276379424,1.33218672,58662.0,58661.0,0.3678]
[1725276380038,1.33218672,58662.0,58661.0,0.007]
[1725276380327,0.05232872,58662.0,58661.0,0.252231]
[1725276380532,0.13755772,58662.0,58661.0,0.252231]
[1725276380733,0.13755772,58662.0,58661.0,0.007]
[1725276380927,0.22278672,58662.0,58661.0,0.007]
[1725276381123,0.170458,58662.0,58661.0,0.007]
[1725276381328,1.33418512,58662.0,58661.0,0.007]
[1725276381934,0.73418512,58662.0,58661.0,0.007]
[1725276382134,1.33418512,58662.0,58661.0,0.007]
[1725276382636,0.73418512,58662.0,58661.0,0.007]
[1725276383334,0.085229,58662.0,58661.0,0.007]
[1725276386035,0.085229,58662.0,58661.0,0.092231]
[1725276386922,0.085229,58662.0,58661.0,0.007]
[1725276387128,0.170458,58662.0,58661.0,0.007]
[1725276387328,0.681858,58662.0,58661.0,0.007]
[1725276387638,1.367087,58662.0,58661.0,0.007]
[1725276387939,1.345687,58662.0,58661.0,0.007]
[1725276388341,1.260458,58662.0,58661.0,0.007]
[1725276388528,0.660458,58662.0,58661.0,0.007]
[1725276388730,0.085229,58662.0,58661.0,0.007]
[1725276388925,0.177429,58662.0,58661.0,0.007]
[1725276391529,0.262658,58662.0,58661.0,0.007]
[1725276392339,1.619287,58662.0,58661.0,0.007]
[1725276395137,0.422658,58662.0,58661.0,0.007]
[1725276395444,0.177429,58662.0,58661.0,0.092231]
[1725276395644,0.132129,58662.0,58661.0,0.092231]
[1725276395842,0.00025574,58667.0,58665.0,0.085223]
[1725276395843,0.085225,58666.0,58665.0,0.085223]
[1725276396029,0.00025574,58667.0,58664.0,0.3608]
[1725276396232,0.00025574,58667.0,58666.0,0.085223]
[1725276398335,0.00225574,58667.0,58666.0,0.086223]
[1725276398537,0.08747774,58667.0,58666.0,0.001]
[1725276398848,0.00225574,58667.0,58666.0,0.086223]
[1725276399550,0.00325574,58667.0,58666.0,0.086223]
[1725276404950,0.00325574,58667.0,58666.0,0.447023]
[1725276406542,0.00325574,58667.0,58666.0,0.086223]
[1725276406747,0.00325574,58667.0,58666.0,0.447023]
[1725276407146,0.08847774,58667.0,58666.0,0.447023]
[1725276407455,0.17369974,58667.0,58666.0,0.3618]
[1725276407746,0.08847774,58667.0,58666.0,0.3618]
[1725276409646,0.17369974,58667.0,58666.0,0.3618]
[1725276410039,0.08847774,58667.0,58666.0,0.3618]
[1725276412053,0.08847774,58667.0,58666.0,0.447023]
[1725276412241,0.08847774,58667.0,58666.0,0.3618]
[1725276412847,0.13697774,58667.0,58666.0,0.3618]
[1725276413845,0.22219974,58667.0,58666.0,0.3618]
[1725276414742,0.30742174,58667.0,58666.0,0.3618]
[1725276414946,0.30742174,58667.0,58657.0,0.3608]
[1725276414947,0.085235,58659.0,58657.0,0.3608]
[1725276415149,0.085235,58659.0,58658.0,0.085235]
[1725276415447,0.085235,58659.0,58657.0,0.3608]
[1725276415448,0.085235,58658.0,58657.0,0.3608]
[1725276415659,0.35269779,58658.0,58657.0,0.3608]
[1725276415845,0.43793279,58658.0,58657.0,0.3608]
[1725276416356,0.2677983,58658.0,58657.0,0.3648]
[1725276416943,0.4549401,58658.0,58657.0,0.3648]
[1725276417153,0.4549401,58658.0,58657.0,0.3678]
[1725276417952,0.2677983,58658.0,58657.0,0.3678]
[1725276419057,0.35667143,58658.0,58657.0,0.3678]
[1725276419655,1.03381323,58658.0,58657.0,0.3678]
[1725276419958,1.03381323,58658.0,58650.0,0.3608]
[1725276419959,0.17049,58651.0,58650.0,0.3608]
[1725276420146,0.2228183,58651.0,58650.0,0.3608]
[1725276420548,0.71282705,58651.0,58650.0,0.3608]
[1725276420751,0.96111965,58651.0,58650.0,0.3608]
[1725276420951,0.77397589,58651.0,58650.0,0.3608]
[1725276421347,0.77397589,58651.0,58650.0,0.3618]
[1725276421348,0.77697589,58651.0,58650.0,0.3618]
[1725276422154,0.77597589,58651.0,58650.0,0.3618]
[1725276422354,0.71482705,58651.0,58650.0,0.3618]
[1725276422556,0.71482705,58651.0,58650.0,0.3118]
[1725276422747,0.92182304,58651.0,58650.0,0.002]
[1725276423057,0.751735,58651.0,58650.0,0.002]
[1725276423257,1.859255,58651.0,58650.0,0.001]
[1725276423454,1.867255,58651.0,58650.0,0.002]
[1725276424057,1.867255,58651.0,58645.0,0.00025574]
[1725276424058,0.168506,58646.0,58645.0,0.00025574]
[1725276424246,0.328506,58646.0,58645.0,0.00025574]
[1725276424455,0.425206,58646.0,58645.0,0.00025574]
[1725276424858,0.914206,58646.0,58645.0,0.00025574]
[1725276425057,0.92294344,58646.0,58645.0,0.00025574]
[1725276425259,1.00819644,58646.0,58645.0,0.00025574]
[1725276425758,1.00819644,58646.0,58645.0,0.00225574]
[1725276425759,1.02119644,58646.0,58645.0,0.00225574]
[1725276427062,2.13275644,58646.0,58645.0,0.00225574]
[1725276427463,0.085271,58634.0,58633.0,0.085271]
[1725276427769,0.08526,58642.0,58641.0,0.085257]
[1725276427951,0.08526,58642.0,58641.0,0.085657]
[1725276429169,0.08926,58642.0,58641.0,0.085657]
[1725276430168,0.004,58642.0,58641.0,0.245657]
[1725276430371,0.004,58642.0,58641.0,0.330917]
[1725276430674,0.008,58642.0,58641.0,0.691717]
[1725276431157,0.004,58642.0,58641.0,0.691717]
[1725276431461,0.004,58642.0,58636.0,0.00025574]
[1725276431462,0.6776,58642.0,58636.0,0.00025574]
[1725276431669,0.085262,58640.0,58636.0,0.00025574]
[1725276431961,0.16,58641.0,58636.0,0.00025574]
[1725276432167,0.085262,58640.0,58636.0,0.00025574]
[1725276432369,0.16,58641.0,58636.0,0.00025574]
[1725276432770,0.16,58641.0,58636.0,0.00325574]
[1725276433471,0.161,58641.0,58636.0,0.00025574]
[1725276433674,0.085266,58637.0,58636.0,0.00025574]
[1725276433969,0.085266,58637.0,58636.0,0.00225574]
[1725276434268,0.245266,58637.0,58636.0,0.00225574]
[1725276434472,0.377132,58637.0,58636.0,0.00025574]
[1725276434667,1.574038,58637.0,58636.0,0.00025574]
[1725276434863,0.085285,58624.0,58623.0,0.3608]
[1725276435461,0.084285,58624.0,58623.0,0.3608]
[1725276435980,0.083285,58624.0,58623.0,0.3608]
[1725276436480,0.243285,58624.0,58623.0,0.3608]
[1725276436669,0.086285,58624.0,58623.0,0.3608]
[1725276437282,0.090285,58624.0,58623.0,0.3608]
[1725276437772,0.33557,58624.0,58623.0,0.3608]
[1725276437974,0.420855,58624.0,58623.0,0.3608]
[1725276438766,0.421255,58624.0,58623.0,0.3608]
[1725276438973,0.08529,58620.0,58619.0,0.0468]
[1725276439171,0.24569,58620.0,58619.0,0.0468]
[1725276439873,0.24569,58620.0,58618.0,0.00025574]
[1725276439874,0.170584,58619.0,58618.0,0.00025574]
[1725276440067,0.170984,58619.0,58618.0,0.00025574]
[1725276440270,0.169984,58619.0,58618.0,0.00025574]
[1725276440472,0.084692,58619.0,58618.0,0.00025574]
[1725276441279,0.084692,58619.0,58618.0,0.00225574]
[1725276441971,0.090692,58619.0,58618.0,0.00125574]
[1725276442376,0.090692,58619.0,58618.0,0.00225574]
[1725276442377,0.096692,58619.0,58618.0,0.00225574]
[1725276443670,0.096692,58619.0,58618.0,0.08754874]
[1725276444577,0.0124,58619.0,58618.0,0.08754874]
[1725276446669,0.0124,58619.0,58618.0,0.17284174]
[1725276447568,0.0124,58619.0,58618.0,1.28464174]
[1725276447768,0.0124,58619.0,58618.0,1.64544174]
[1725276447977,0.0124,58619.0,58618.0,1.13364174]
[1725276448177,0.08528,58627.0,58626.0,0.085281]
[1725276448372,0.08528,58627.0,58626.0,0.446081]
[1725276448678,0.00025574,58629.0,58628.0,0.085279]
[1725276448875,0.00025574,58629.0,58628.0,0.085679]
[1725276449282,0.08553274,58629.0,58628.0,0.085679]
[1725276450275,0.09753274,58629.0,58628.0,0.086679]
[1725276450782,0.08853274,58629.0,58628.0,0.085679]
[1725276450980,0.09153274,58629.0,58628.0,0.085679]
[1725276452774,0.09153274,58629.0,58628.0,0.0004]
[1725276454183,0.00625574,58629.0,58628.0,0.13635603]
[1725276454380,0.00625574,58629.0,58628.0,0.085679]
[1725276455481,0.00625574,58629.0,58628.0,1.197359]
[1725276456078,0.00625574,58629.0,58628.0,0.085679]
[1725276456284,0.00625574,58629.0,58628.0,1.197359]
[1725276456484,0.00625574,58629.0,58628.0,0.597359]
[1725276457581,0.00625574,58629.0,58628.0,0.085679]
[1725276463391,0.00625574,58629.0,58628.0,0.446479]
[1725276463686,0.00625574,58629.0,58628.0,0.691758]
[1725276463891,0.00625574,58629.0,58628.0,0.86171782]
[1725276464079,0.00625574,58629.0,58628.0,0.90700594]
[1725276464281,0.00625574,58629.0,58628.0,2.01868594]
[1725276464477,0.00873448,58648.0,58647.0,0.085251]
[1725276464680,0.0467,58650.0,58649.0,0.085248]
[1725276464884,0.0467,58650.0,58649.0,0.085648]
[1725276465194,0.0467,58650.0,58649.0,0.085248]
[1725276465990,0.5367,58650.0,58649.0,0.085248]
[1725276466285,0.08525,58648.0,58647.0,0.3622]
[1725276466490,0.07056529,58648.0,58647.0,0.446451]
[1725276466799,0.06956529,58648.0,58647.0,0.446451]
[1725276467491,0.0044,58648.0,58647.0,0.447451]
[1725276467685,0.0054,58648.0,58647.0,0.448451]
[1725276468982,0.0054,58648.0,58647.0,0.087651]
[1725276472893,0.0054,58648.0,58647.0,0.332902]
[1725276473993,0.0054,58648.0,58647.0,0.418153]
[1725276475302,0.0054,58648.0,58647.0,1.529673]
[1725276475600,0.00048852,58648.0,58647.0,1.664224]
[1725276475799,5.2e-07,58648.0,58647.0,1.79412991]
[1725276476190,5.2e-07,58648.0,58647.0,1.79312991]
[1725276476496,5.2e-07,58648.0,58647.0,1.79412991]
[1725276476696,0.49,58669.0,58654.0,0.415723]
[1725276476899,0.49,58669.0,58654.0,1.38563716]
[1725276476900,0.0508,58668.0,58654.0,1.38563716]
[1725276477098,0.0508,58668.0,58654.0,1.89711716]
[1725276477397,0.0508,58668.0,58654.0,1.96448097]
[1725276477590,0.0508,58668.0,58654.0,1.89711716]
[1725276478101,0.0508,58668.0,58654.0,1.38563716]
[1725276478493,0.0508,58668.0,58654.0,1.89711716]
[1725276478997,0.0508,58668.0,58654.0,1.89811716]
[1725276480904,7.4e-07,58655.0,58654.0,1.89811716]
[1725276481299,0.0012,58668.0,58667.0,0.170444]
[1725276481602,0.0012,58668.0,58667.0,1.052444]
[1725276481797,0.0012,58668.0,58667.0,1.10292628]
[1725276481999,0.0012,58668.0,58667.0,1.052444]
[1725276482505,0.0012,58668.0,58667.0,1.053444]
[1725276483006,0.0012,58668.0,58667.0,1.054444]
[1725276483203,0.0012,58668.0,58667.0,1.565804]
[1725276483699,0.0012,58668.0,58667.0,2.165804]
[1725276484302,0.0012,58668.0,58667.0,2.251026]
[1725276484506,0.0012,58668.0,58667.0,1.651026]
[1725276484696,0.0012,58668.0,58667.0,2.251026]
[1725276484895,0.0012,58668.0,58667.0,1.651026]
[1725276485090,0.0012,58668.0,58667.0,2.251026]
[1725276485696,0.0012,58668.0,58667.0,2.263026]
[1725276486599,0.0012,58668.0,58667.0,2.262026]
[1725276487904,0.0012,58668.0,58667.0,2.26564688]
[1725276488102,0.0012,58668.0,58667.0,2.25264688]
[1725276488409,0.0012,58668.0,58667.0,2.35186888]
[1725276489003,0.0012,58668.0,58667.0,2.35686888]
[1725276489911,0.0012,58668.0,58667.0,2.35186888]
[1725276490403,0.0012,58668.0,58667.0,2.34486888]
[1725276490601,0.0012,58668.0,58667.0,2.35786888]
[1725276492013,0.0012,58668.0,58667.0,2.33786888]
[1725276492203,0.0012,58668.0,58667.0,2.36086888]
[1725276492809,0.0012,58668.0,58667.0,2.34986888]
[1725276493118,0.0012,58668.0,58667.0,1.85050888]
[1725276493511,0.0012,58668.0,58667.0,2.36186888]
[1725276493712,0.0012,58668.0,58667.0,2.35086888]
[1725276493907,0.0012,58668.0,58667.0,2.36186888]
[1725276494414,0.0012,58668.0,58667.0,2.36086888]
[1725276495418,1e-08,58668.0,58667.0,2.34986888]
[1725276495715,1e-08,58668.0,58667.0,2.36286888]
[1725276496111,0.0477,58684.0,58683.0,0.170398]
[1725276496330,0.0942,58695.0,58694.0,0.085183]
[1725276496621,0.0942,58695.0,58694.0,0.966783]
[1725276496824,0.0942,58695.0,58694.0,0.806783]
[1725276497715,0.0515766,58695.0,58694.0,0.966783]
[1725276498116,0.0525766,58695.0,58694.0,0.967783]
[1725276498316,0.0525766,58695.0,58694.0,0.807783]
[1725276498723,0.0525766,58695.0,58694.0,0.967783]
[1725276499221,0.0525766,58695.0,58694.0,0.968783]
[1725276500011,0.0525766,58695.0,58694.0,0.7236]
[1725276500211,0.2977576,58695.0,58694.0,0.7236]
[1725276500430,0.085189,58690.0,58689.0,0.00025574]
[1725276500619,0.085194,58686.0,58685.0,0.3608]
[1725276501126,0.575194,58686.0,58685.0,0.36436955]
[1725276501321,0.085194,58686.0,58685.0,0.3608]
[1725276501826,0.08519,58690.0,58681.0,0.00196]
[1725276501827,0.085196,58685.0,58681.0,0.00196]
[1725276502028,0.16,58683.0,58679.0,0.2489]
[1725276502212,0.3608,58680.0,58670.0,0.05048228]
[1725276502527,0.3608,58680.0,58669.0,0.00351979]
[1725276502528,0.3588,58673.0,58669.0,0.00351979]
[1725276502724,0.3588,58673.0,58668.0,0.41128228]
[1725276502725,0.085218,58670.0,58668.0,0.41128228]
[1725276503025,0.085218,58670.0,58669.0,0.0004]
[1725276503416,0.084218,58670.0,58669.0,0.0004]
[1725276503718,0.084218,58670.0,58669.0,0.05091211]
[1725276503919,0.084218,58670.0,58669.0,0.0004]
[1725276504321,0.084218,58670.0,58669.0,0.05091211]
[1725276504925,0.085218,58670.0,58669.0,0.05191211]
[1725276505121,0.085218,58670.0,58669.0,0.0014]
[1725276505322,0.088218,58670.0,58669.0,0.0024]